fUST/lending_fUST_20250908
["ID","MTS","AMOUNT","RATE_DAILY","PERIOD"]
[384226958,1757299832670,-266.69760257,0.00013537,2]
[384227003,1757299838487,-933.30239743,0.00013537,2]
[384227005,1757299838497,-10013.5123769,0.00013538,2]
[384227007,1757299838507,-1651.39738568,0.00013545,2]
[384227009,1757299838516,-1200.0,0.00013597,2]
[384227011,1757299838526,-382.58508354,0.00013597,2]
[384227013,1757299838535,-451.28222792,0.00013597,2]
[384227015,1757299838544,-380.36433192,0.00013597,2]
[384227017,1757299838553,-500.0,0.00013597,2]
[384227019,1757299838563,-182.00571409,0.00013597,2]
[384227020,1757299838572,-263.29188423,0.00013597,2]
[384227023,1757299838582,-561.32331486,0.00013597,2]
[384227024,1757299838591,-500.0,0.00013597,2]
[384227026,1757299838600,-500.0,0.00013597,2]
[384227028,1757299838609,-500.0,0.00013597,2]
[384227031,1757299838618,-500.0,0.00013597,2]
[384227033,1757299838628,-500.0,0.00013597,2]
[384227034,1757299838637,-500.0,0.00013597,2]
[384227036,1757299838646,-500.0,0.00013597,2]
[384227038,1757299838655,-500.0,0.00013597,2]
[384227040,1757299838664,-500.0,0.00013597,2]
[384227042,1757299838673,-500.0,0.00013597,2]
[384227044,1757299838682,-500.0,0.00013597,2]
[384227046,1757299838691,-500.0,0.00013597,2]
[384227048,1757299838701,-500.0,0.00013597,2]
[384227050,1757299838711,-500.0,0.00013597,2]
[384227052,1757299838720,-598.51603675,0.00013597,2]
[384227054,1757299838729,-500.0,0.00013597,2]
[384227056,1757299838739,-500.0,0.00013597,2]
[384227058,1757299838748,-780.90439722,0.00013598,2]
[384227060,1757299838758,-2036.48307902,0.00013598,2]
[384227062,1757299838767,-9198.20234417,0.00013598,2]
[384227064,1757299838776,-4286.33199085,0.00013598,2]
[384227290,1757299840684,-463.49354728,0.00013598,2]
[384227295,1757299840731,-212662.63490767,0.00013598,2]
[384227298,1757299840740,-2036.48307901,0.00013646,2]
[384227299,1757299840749,-8776.41946468,0.00013666,2]
[384227302,1757299840765,-506.83698127,0.00013666,2]
[384227522,1757299843537,-102.825915,0.00013666,2]
[384227831,1757299846673,-3361.57885783,0.00013666,2]
[384227833,1757299846684,-6573.29046437,0.00013666,2]
[384227958,1757300051920,307.0652468,0.00013154,2]
[384227959,1757300075006,307.0652468,0.00013154,2]
[384227960,1757300098784,307.0652468,0.00013154,2]
[384227961,1757300123844,307.0652468,0.00013154,2]
[384227963,1757300147287,307.0652468,0.00013154,2]
[384227964,1757300153280,166.74899984,0.00028814,120]
[384227966,1757300170802,307.0652468,0.00013154,2]
[384227967,1757300194934,307.0652468,0.00013154,2]
[384227968,1757300217760,307.0652468,0.00013154,2]
[384227969,1757300240650,307.0652468,0.00013154,2]
[384227970,1757300264602,307.0652468,0.00013154,2]
[384227971,1757300273232,307.0652468,0.00013154,2]
[384227973,1757300289719,307.0652468,0.00013154,2]
[384227974,1757300315550,307.0652468,0.00013154,2]
[384227975,1757300338742,307.0652468,0.00013154,2]
[384227976,1757300362251,307.0652468,0.00013154,2]
[384227977,1757300386716,307.0652468,0.00013154,2]
[384227978,1757300403103,307.0652468,0.00013154,2]
[384227979,1757300411181,307.0652468,0.00013154,2]
[384227980,1757300427871,307.0652468,0.00013154,2]
[384227981,1757300435945,307.0652468,0.00013154,2]
[384227982,1757300452302,307.0652468,0.00013154,2]
[384227983,1757300476237,126.3107753,0.00013154,2]
[384227984,1757300476261,180.7544715,0.00013154,2]
[384227985,1757300500460,307.0652468,0.00013154,2]
[384227986,1757300524252,307.0652468,0.00013154,2]
[384227987,1757300548042,307.0652468,0.00013154,2]
[384227988,1757300571260,307.0652468,0.00013154,2]
[384227989,1757300594627,307.0652468,0.00013154,2]
[384227991,1757300603452,307.0652468,0.00013154,2]
[384227992,1757300619126,307.0652468,0.00013154,2]
[384227993,1757300627892,307.0652468,0.00013154,2]
[384227994,1757300650952,307.0652468,0.00013154,2]
[384227995,1757300675100,307.0652468,0.00013154,2]
[384227996,1757300697853,307.0652468,0.00013154,2]
[384228008,1757300722456,307.0652468,0.00013154,2]
[384228013,1757300746324,307.0652468,0.00013154,2]
[384228014,1757300769746,307.0652468,0.00013154,2]
[384228015,1757300793819,307.0652468,0.00013154,2]
[384228016,1757300817478,307.0652468,0.00013154,2]
[384228017,1757300841297,307.0652468,0.00013154,2]
[384228018,1757300864913,307.0652468,0.00013154,2]
[384228019,1757300888936,214.78336009,0.00013154,2]
[384228067,1757301032769,-307.0652468,0.00013287,2]
[384228068,1757301032778,-152.56295962,0.00013567,2]
[384228069,1757301032788,-1200.0,0.00013595,2]
[384228070,1757301032797,-297.83736121,0.00013596,2]
[384228071,1757301032833,-331.45280254,0.00013596,2]
[384228072,1757301032856,-570.70983625,0.00013596,2]
[384228073,1757301032865,-5.62301729,0.00013597,2]
[384228074,1757301032876,-1669.06414728,0.00013597,2]
[384228076,1757301032885,-300.0,0.00013597,2]
[384228077,1757301032894,-300.0,0.00013597,2]
[384228078,1757301032904,-300.0,0.00013597,2]
[384228079,1757301032913,-300.0,0.00013597,2]
[384228080,1757301032923,-2104.34384753,0.00013598,2]
[384228081,1757301032932,-4286.33199085,0.00013598,2]
[384228082,1757301032940,-1000.0,0.00013598,2]
[384228083,1757301032949,-9021.35206054,0.00013598,2]
[384228108,1757301038672,-1894.03703455,0.00013598,2]
[384228110,1757301038684,-8757.6501952,0.00013598,2]
[384228112,1757301038693,-780.90439722,0.00013666,2]
[384228114,1757301038702,-2104.34384749,0.00013667,2]
[384228116,1757301038711,-2030.296672,0.00013689,2]
[384228118,1757301038720,-151.0,0.0001369,2]
[384228120,1757301038730,-225.23057374,0.0001369,2]
[384228122,1757301038739,-151.0,0.0001369,2]
[384228124,1757301038749,-154.84869596,0.0001369,2]
[384228125,1757301038760,-218.7047344,0.0001369,2]
[384228127,1757301038771,-500.0,0.0001369,2]
[384228129,1757301038780,-500.0,0.0001369,2]
[384228131,1757301038789,-500.0,0.0001369,2]
[384228133,1757301038798,-500.0,0.0001369,2]
[384228135,1757301038808,-501.15736935,0.0001369,2]
[384228137,1757301038818,-999.33400875,0.00013697,2]
[384228139,1757301038827,-267.80955848,0.00013697,2]
[384228141,1757301038838,-315.89755954,0.00013697,2]
[384228143,1757301038849,-500.0,0.00013697,2]
[384228145,1757301038858,-510.94622631,0.00013697,2]
[384228147,1757301038868,-500.0,0.00013697,2]
[384228149,1757301038877,-500.0,0.00013697,2]
[384228151,1757301038886,-500.0,0.00013697,2]
[384228153,1757301038896,-300.0,0.00013697,2]
[384228155,1757301038905,-500.0,0.00013697,2]
[384228157,1757301038914,-500.0,0.00013697,2]
[384228159,1757301038923,-500.0,0.00013697,2]
[384228161,1757301038933,-300.0,0.00013697,2]
[384228163,1757301038942,-500.0,0.00013697,2]
[384228165,1757301038952,-598.51603675,0.00013697,2]
[384228166,1757301038961,-500.0,0.00013697,2]
[384228168,1757301038971,-500.0,0.00013697,2]
[384228170,1757301038980,-500.0,0.00013697,2]
[384228172,1757301038989,-561.32331486,0.00013697,2]
[384228174,1757301038998,-500.0,0.00013697,2]
[384228176,1757301039007,-500.0,0.00013697,2]
[384228178,1757301039017,-263.29188423,0.00013697,2]
[384228180,1757301039026,-182.00571409,0.00013697,2]
[384228182,1757301039035,-380.36433192,0.00013697,2]
[384228184,1757301039045,-500.0,0.00013697,2]
[384228186,1757301039054,-66.66528428,0.00013697,2]
[384228870,1757301046936,-433.33471572,0.00013697,2]
[384228872,1757301046946,-500.0,0.00013697,2]
[384228874,1757301046956,-480.0,0.00013698,2]
[384228876,1757301046966,-1004.25960806,0.00013698,2]
[384228878,1757301046975,-150.51606064,0.00013698,2]
[384228961,1757301996119,4443.548494,0.00018,21]
[384228975,1757302231882,-184.23914808,0.00013287,2]
[384228976,1757302231892,-300.0,0.00013499,2]
[384228977,1757302231902,-300.0,0.00013499,2]
[384228978,1757302231911,-300.0,0.00013499,2]
[384228979,1757302231920,-1200.0,0.00013499,2]
[384228980,1757302231929,-4885.69024562,0.000135,2]
[384228981,1757302231989,-23310.1770625,0.000135,2]
[384229017,1757302237918,-41419.50256458,0.000135,2]
[384229839,1757302246159,-785.26843008,0.000135,2]
[384241230,1757302762854,9946.849752,0.00025,30]
[384241234,1757303068163,328.94363543,0.00013231,2]
[384242378,1757303856875,151.0,0.00025,30]
[384242379,1757303900032,151.0,0.00025,30]
[384242380,1757303981527,151.0,0.00025,30]
[384242391,1757304632385,-2266.67665911,0.000135,2]
[384242413,1757304638422,-483.87463915,0.000135,2]
[384242414,1757304638431,-1863.40526426,0.0001353,2]
[384242415,1757304638528,-166.89140774,0.0001353,2]
[384242416,1757304638537,-1200.0,0.00013536,2]
[384242417,1757304638547,-1200.0,0.00013537,2]
[384242418,1757304638556,-300.0,0.00013537,2]
[384242419,1757304638565,-2613.83086104,0.00013538,2]
[384242420,1757304638576,-119.02918466,0.00013538,2]
[384242421,1757304638585,-8382.8214508,0.00013538,2]
[384242422,1757304638595,-7866.5856292,0.00013538,2]
[384242423,1757304638604,-152.035455,0.00013538,2]
[384242424,1757304638613,-151.0,0.00013538,2]
[384242425,1757304638623,-286.050647,0.00013538,2]
[384242426,1757304638632,-154.229235,0.00013538,2]
[384242427,1757304638642,-152.386087,0.00013538,2]
[384242428,1757304638652,-164.653181,0.00013538,2]
[384242429,1757304638664,-221.801711,0.00013538,2]
[384242430,1757304638674,-6686.66814769,0.00013538,2]
[384242431,1757304638687,-2070.98204751,0.00013538,2]
[384242432,1757304638700,-396.91646232,0.00013585,2]
[384242433,1757304638710,-231.93686129,0.00013598,2]
[384242438,1757304640425,-1451.53821671,0.00013598,2]
[384242439,1757304640434,-2353.73678254,0.00013598,2]
[384242440,1757304640443,-1683.47507799,0.00013645,2]
[384242441,1757304640453,-162.380719,0.0001369,2]
[384242442,1757304640462,-123.36920376,0.0001369,2]
[384242477,1757304646433,-101.86136998,0.0001369,2]
[384242478,1757304646442,-149.0814764,0.0001369,2]
[384242479,1757304646453,-1.9185236,0.0001369,2]
[384242480,1757304646462,-151.0,0.0001369,2]
[384242481,1757304646470,-151.0,0.0001369,2]
[384242482,1757304646478,-137.6894965,0.0001369,2]
[384242483,1757304917463,372.0,0.00013544,2]
[384242493,1757305769990,507.87588878,0.00013006,2]
[384242494,1757305772545,2029.47205156,0.00013006,2]
[384242519,1757305832624,-372.0,0.00013523,2]
[384242523,1757305832634,-3483.921064,0.00013523,2]
[384242525,1757305832643,-372.0,0.00013571,2]
[384242527,1757305832652,-1010.08504681,0.00013598,2]
[384242530,1757305832662,-372.0,0.0001361,2]
[384242532,1757305832671,-372.0,0.00013617,2]
[384242533,1757305832680,-168.0,0.0001364,2]
[384242534,1757305832689,-372.0,0.00013655,2]
[384242535,1757305832699,-1010.08504679,0.00013667,2]
[384242537,1757305832708,-1200.0,0.00013667,2]
[384242539,1757305832717,-718.0,0.00013668,2]
[384242540,1757305832726,-372.0,0.00013669,2]
[384242541,1757305832737,-300.0,0.00013689,2]
[384242542,1757305832746,-151.0,0.0001369,2]
[384242543,1757305832755,-151.0,0.0001369,2]
[384242544,1757305832764,-151.0,0.0001369,2]
[384242545,1757305832774,-151.0,0.0001369,2]
[384242546,1757305832783,-237.40411689,0.0001369,2]
[384242547,1757305832793,-256.71823609,0.0001369,2]
[384242548,1757305832803,-500.0,0.0001369,2]
[384242549,1757305832812,-500.0,0.0001369,2]
[384242550,1757305832823,-500.0,0.0001369,2]
[384242551,1757305832834,-500.0,0.0001369,2]
[384242552,1757305832843,-501.15736935,0.0001369,2]
[384242553,1757305832852,-372.0,0.00013695,2]
[384242554,1757305832861,-999.33400875,0.00013697,2]
[384242555,1757305832872,-263.29188423,0.00013697,2]
[384242556,1757305832881,-182.00571409,0.00013697,2]
[384242557,1757305832890,-500.0,0.00013697,2]
[384242558,1757305832900,-380.36433192,0.00013697,2]
[384242559,1757305832909,-561.32331486,0.00013697,2]
[384242560,1757305832920,-500.0,0.00013697,2]
[384242561,1757305832929,-500.0,0.00013697,2]
[384242562,1757305832939,-500.0,0.00013697,2]
[384242563,1757305832950,-500.0,0.00013697,2]
[384242564,1757305832960,-500.0,0.00013697,2]
[384242565,1757305832969,-258.51479261,0.00013697,2]
[384242566,1757305832979,-500.0,0.00013697,2]
[384242567,1757305832988,-366.22522149,0.00013697,2]
[384242597,1757305843531,-133.77477851,0.00013697,2]
[384242598,1757305843541,-500.0,0.00013697,2]
[384242599,1757305843551,-500.0,0.00013697,2]
[384242600,1757305843560,-500.0,0.00013697,2]
[384242601,1757305843570,-64.71477436,0.00013697,2]
[384242608,1757305846662,-435.28522564,0.00013697,2]
[384242609,1757305846672,-206.15377142,0.00013697,2]
[384242610,1757305846717,-269.05,0.00013697,2]
[384242632,1757306696522,-636.47439736,0.00013598,2]
[384242633,1757306696545,-1790.52782839,0.00013598,2]
[384242634,1757306696566,-636.47439736,0.00013667,2]
[384242635,1757306696587,-1200.0,0.00013694,2]
[384242636,1757306696608,-1200.0,0.00013695,2]
[384242637,1757306696630,-300.0,0.00013695,2]
[384242638,1757306696652,-300.0,0.00013696,2]
[384242639,1757306696673,-300.0,0.00013696,2]
[384242640,1757306696695,-300.0,0.00013696,2]
[384242641,1757306696719,-24.79622858,0.00013697,2]
[384242642,1757306696743,-500.0,0.00013697,2]
[384242643,1757306696767,-500.0,0.00013697,2]
[384242644,1757306696790,-500.0,0.00013697,2]
[384242645,1757306696813,-1556.8469093,0.00013697,2]
[384242646,1757306696835,-482.66894808,0.00013698,2]
[384242647,1757306696856,-480.0,0.00013698,2]
[384242648,1757306696879,-480.0,0.00013698,2]
[384242649,1757306696900,-482.80574808,0.00013698,2]
[384242650,1757306696923,-482.80699922,0.00013698,2]
[384242651,1757306696945,-500.0,0.00013698,2]
[384242652,1757306696967,-331.18156293,0.00013698,2]
[384242653,1757306696989,-482.93370031,0.00013698,2]
[384242654,1757306697011,-468.85458987,0.00013698,2]
[384242655,1757306697034,-489.16841864,0.00013698,2]
[384242656,1757306697054,-480.0,0.00013698,2]
[384242657,1757306697075,-487.12165361,0.00013698,2]
[384242658,1757306697096,-480.0,0.00013698,2]
[384242659,1757306697117,-480.3674054,0.00013698,2]
[384242660,1757306697138,-483.90163679,0.00013698,2]
[384242661,1757306697160,-484.79161944,0.00013698,2]
[384242662,1757306697183,-481.58157239,0.00013698,2]
[384242663,1757306697334,-481.98892608,0.00013698,2]
[384242664,1757306697359,-482.68909582,0.00013698,2]
[384242665,1757306697380,-480.0,0.00013698,2]
[384242666,1757306697402,-480.0,0.00013698,2]
[384242667,1757306697424,-481.40770354,0.00013698,2]
[384242668,1757306697445,-480.0,0.00013698,2]
[384242669,1757306697465,-480.0,0.00013698,2]
[384242670,1757306697487,-482.03272056,0.00013698,2]
[384242671,1757306697508,-487.61868718,0.00013698,2]
[384242672,1757306697530,-474.75949799,0.00013698,2]
[384242673,1757306697551,-480.96057961,0.00013698,2]
[384242674,1757306697573,-483.35851668,0.00013698,2]
[384242675,1757306697594,-485.91164065,0.00013698,2]
[384242676,1757306697617,-480.0,0.00013698,2]
[384242677,1757306697640,-482.17610591,0.00013698,2]
[384242678,1757306697662,-486.56359179,0.00013698,2]
[384242679,1757306697683,-483.21839444,0.00013698,2]
[384242680,1757306697704,-480.0,0.00013698,2]
[384242681,1757306697726,-482.38318338,0.00013698,2]
[384242682,1757306697752,-273.35441958,0.00013698,2]
[384242683,1757306697774,-480.0,0.00013698,2]
[384242684,1757306697796,-176.95247079,0.00013698,2]
[384242685,1757306697818,-487.66647017,0.00013698,2]
[384242686,1757306697840,-480.0,0.00013698,2]
[384242687,1757306697861,-574.6142304,0.00013698,2]
[384242688,1757306697882,-480.0,0.00013698,2]
[384242689,1757306697905,-483.28706263,0.00013698,2]
[384242690,1757306697928,-486.71304322,0.00013698,2]
[384242691,1757306697951,-487.44983241,0.00013698,2]
[384242692,1757306697974,-480.0,0.00013698,2]
[384242693,1757306697996,-484.79813016,0.00013698,2]
[384242694,1757306698017,-487.58320745,0.00013698,2]
[384242695,1757306698039,-485.81746661,0.00013698,2]
[384242696,1757306698060,-484.37939088,0.00013698,2]
[384242697,1757306698082,-481.97211873,0.00013698,2]
[384242698,1757306698105,-481.93845365,0.00013698,2]
[384242699,1757306698131,-482.58842867,0.00013698,2]
[384242700,1757306698153,-486.74006846,0.00013698,2]
[384242701,1757306698175,-480.0,0.00013698,2]
[384242702,1757306698196,-480.0,0.00013698,2]
[384242703,1757306698218,-192.89126168,0.00013698,2]
[384242704,1757306698240,-480.0,0.00013698,2]
[384242705,1757306698262,-483.39272109,0.00013698,2]
[384242706,1757306698284,-480.0,0.00013698,2]
[384242707,1757306698307,-480.0,0.00013698,2]
[384242708,1757306698330,-480.0,0.00013698,2]
[384242709,1757306698359,-1018.46180751,0.00013698,2]
[384242710,1757306698383,-480.0,0.00013698,2]
[384242711,1757306698407,-481.27112784,0.00013698,2]
[384242712,1757306698435,-566.21578546,0.00013698,2]
[384242713,1757306698458,-481.53412573,0.00013698,2]
[384242714,1757306698482,-483.50190476,0.00013698,2]
[384242715,1757306698508,-315.79590153,0.00013698,2]
[384242716,1757306698531,-480.0,0.00013698,2]
[384242717,1757306698557,-483.02024517,0.00013698,2]
[384242718,1757306698579,-487.74269048,0.00013698,2]
[384242719,1757306698600,-480.75657091,0.00013698,2]
[384242720,1757306698625,-480.0,0.00013698,2]
[384242721,1757306698649,-480.0,0.00013698,2]
[384242722,1757306698673,-629.57268172,0.00013698,2]
[384242723,1757306698697,-210.69950925,0.00013698,2]
[384242724,1757306698721,-480.0,0.00013698,2]
[384242725,1757306698747,-480.70440782,0.00013698,2]
[384242726,1757306698771,-481.30725529,0.00013698,2]
[384242727,1757306698795,-480.0,0.00013698,2]
[384242728,1757306698818,-480.0,0.00013698,2]
[384242729,1757306698841,-481.85658362,0.00013698,2]
[384242730,1757306698864,-480.0,0.00013698,2]
[384242731,1757306698886,-480.0,0.00013698,2]
[384242732,1757306698908,-480.0,0.00013698,2]
[384242733,1757306698930,-160.03332153,0.00013698,2]
[384242734,1757306698952,-482.20586991,0.00013698,2]
[384242735,1757306698974,-480.0,0.00013698,2]
[384242736,1757306698997,-480.0,0.00013698,2]
[384242737,1757306699021,-552.03,0.00013698,2]
[384242738,1757306699044,-481.36530988,0.00013698,2]
[384242739,1757306699067,-480.3169513,0.00013698,2]
[384242740,1757306699090,-480.0,0.00013698,2]
[384242741,1757306699111,-480.0,0.00013698,2]
[384242742,1757306699133,-489.35651521,0.00013698,2]
[384242743,1757306699158,-480.0,0.00013698,2]
[384242744,1757306699179,-484.95636577,0.00013698,2]
[384242745,1757306699201,-481.81136024,0.00013698,2]
[384242746,1757306699223,-480.0,0.00013698,2]
[384242747,1757306699246,-481.42762789,0.00013698,2]
[384242748,1757306699270,-480.44882423,0.00013698,2]
[384242749,1757306699292,-480.0,0.00013698,2]
[384242750,1757306699314,-480.0,0.00013698,2]
[384242751,1757306699336,-485.20091637,0.00013698,2]
[384242752,1757306699361,-480.0,0.00013698,2]
[384242753,1757306699382,-481.09966541,0.00013698,2]
[384242754,1757306699406,-480.0,0.00013698,2]
[384242755,1757306699429,-484.25320579,0.00013698,2]
[384242756,1757306699451,-482.57842793,0.00013698,2]
[384242757,1757306699472,-157.70582955,0.00013698,2]
[384242758,1757306699495,-159.06067573,0.00013698,2]
[384242759,1757306699518,-480.9389553,0.00013698,2]
[384242760,1757306699539,-480.0,0.00013698,2]
[384242761,1757306699561,-480.54624586,0.00013698,2]
[384242762,1757306699585,-481.62093295,0.00013698,2]
[384242763,1757306699610,-480.0,0.00013698,2]
[384242764,1757306699633,-480.7603029,0.00013698,2]
[384242765,1757306699655,-484.80770445,0.00013698,2]
[384242766,1757306699677,-484.27593631,0.00013698,2]
[384242767,1757306699699,-481.22378063,0.00013698,2]
[384242768,1757306699825,-480.50595437,0.00013698,2]
[384242769,1757306699852,-500.0,0.00013698,2]
[384242770,1757306699874,-500.0,0.00013698,2]
[384242771,1757306699897,-500.0,0.00013698,2]
[384242772,1757306699921,-500.0,0.00013698,2]
[384242773,1757306699943,-500.0,0.00013698,2]
[384242774,1757306699965,-500.0,0.00013698,2]
[384242775,1757306699988,-500.0,0.00013698,2]
[384242776,1757306700011,-500.0,0.00013698,2]
[384242777,1757306700035,-500.0,0.00013698,2]
[384242778,1757306700059,-500.0,0.00013698,2]
[384242779,1757306700082,-480.2289682,0.00013698,2]
[384242780,1757306700106,-500.0,0.00013698,2]
[384242781,1757306700131,-515.54715316,0.00013698,2]
[384242782,1757306700156,-481.45269427,0.00013698,2]
[384242783,1757306700181,-480.0,0.00013698,2]
[384242784,1757306700206,-524.35,0.00013698,2]
[384242785,1757306700229,-483.66119699,0.00013698,2]
[384242786,1757306700252,-480.0,0.00013698,2]
[384242787,1757306700275,-482.78762382,0.00013698,2]
[384242788,1757306700299,-481.31450981,0.00013698,2]
[384242789,1757306700323,-626.3736805,0.00013698,2]
[384242790,1757306700347,-457.81088949,0.00013698,2]
[384242791,1757306700372,-482.26827808,0.00013698,2]
[384242792,1757306700395,-480.0,0.00013698,2]
[384242793,1757306700417,-480.0,0.00013698,2]
[384242794,1757306700441,-481.13155405,0.00013698,2]
[384242795,1757306700462,-394.54379862,0.00013698,2]
[384242796,1757306700483,-483.27747844,0.00013698,2]
[384242797,1757306700505,-480.0,0.00013698,2]
[384242798,1757306700527,-481.90676515,0.00013698,2]
[384242799,1757306700550,-480.0,0.00013698,2]
[384242800,1757306700572,-308.95627864,0.00013698,2]
[384242801,1757306700595,-483.50769552,0.00013698,2]
[384242802,1757306700616,-481.8054381,0.00013698,2]
[384242803,1757306700638,-500.0,0.00013698,2]
[384242804,1757306700659,-500.0,0.00013698,2]
[384242805,1757306700681,-484.23122971,0.00013698,2]
[384242806,1757306700704,-500.49248074,0.00013698,2]
[384242807,1757306700725,-480.40994845,0.00013698,2]
[384242808,1757306700747,-480.33962411,0.00013698,2]
[384242809,1757306700769,-481.94111292,0.00013698,2]
[384242810,1757306700791,-480.0,0.00013698,2]
[384242811,1757306700813,-483.59661709,0.00013698,2]
[384242812,1757306700835,-486.71912963,0.00013698,2]
[384242813,1757306700856,-480.54532256,0.00013698,2]
[384242814,1757306700879,-480.0,0.00013698,2]
[384242815,1757306700901,-524.81091389,0.00013698,2]
[384242816,1757306700923,-482.75952734,0.00013698,2]
[384242817,1757306700946,-480.0,0.00013698,2]
[384242818,1757306700968,-480.0,0.00013698,2]
[384242819,1757306700991,-480.0,0.00013698,2]
[384242820,1757306701013,-480.0,0.00013698,2]
[384242821,1757306701036,-485.13501322,0.00013698,2]
[384242822,1757306701060,-480.0,0.00013698,2]
[384242823,1757306701082,-480.0,0.00013698,2]
[384242824,1757306701105,-480.0,0.00013698,2]
[384242825,1757306701127,-480.83134092,0.00013698,2]
[384242826,1757306701150,-484.80891358,0.00013698,2]
[384242827,1757306701172,-484.19376381,0.00013698,2]
[384242828,1757306701194,-481.30628172,0.00013698,2]
[384242829,1757306701216,-483.50782515,0.00013698,2]
[384242830,1757306701238,-486.36224395,0.00013698,2]
[384242831,1757306701260,-481.74178881,0.00013698,2]
[384242832,1757306701283,-511.40783638,0.00013698,2]
[384242833,1757306701305,-480.0,0.00013698,2]
[384242834,1757306701328,-198.59057552,0.00013698,2]
[384242835,1757306701351,-480.0,0.00013698,2]
[384242836,1757306701375,-534.48098593,0.00013698,2]
[384242837,1757306701399,-480.0,0.00013698,2]
[384242838,1757306701421,-480.0,0.00013698,2]
[384242839,1757306701444,-481.68586682,0.00013698,2]
[384242840,1757306701467,-480.0,0.00013698,2]
[384242841,1757306701491,-481.0069487,0.00013698,2]
[384242842,1757306701513,-480.76003422,0.00013698,2]
[384242843,1757306701536,-483.20461728,0.00013698,2]
[384242844,1757306701560,-488.46869455,0.00013698,2]
[384242845,1757306701581,-509.8,0.00013698,2]
[384242846,1757306701603,-462.50767294,0.00013698,2]
[384242847,1757306701628,-383.08243381,0.00013698,2]
[384242848,1757306701650,-480.0,0.00013698,2]
[384242849,1757306701674,-484.63323559,0.00013698,2]
[384242850,1757306701697,-480.0,0.00013698,2]
[384242851,1757306701720,-483.14621231,0.00013698,2]
[384242852,1757306701745,-486.18145926,0.00013698,2]
[384242853,1757306701769,-314.33270682,0.00013698,2]
[384242854,1757306701791,-480.0,0.00013698,2]
[384242855,1757306701815,-480.0,0.00013698,2]
[384242856,1757306701839,-484.64855522,0.00013698,2]
[384242857,1757306701863,-579.45388299,0.00013698,2]
[384242858,1757306701887,-480.59128714,0.00013698,2]
[384242859,1757306701911,-481.31858386,0.00013698,2]
[384242860,1757306701935,-484.81400004,0.00013698,2]
[384242861,1757306701958,-484.86786586,0.00013698,2]
[384242862,1757306701981,-485.85955837,0.00013698,2]
[384242863,1757306702002,-480.23824857,0.00013698,2]
[384242864,1757306702024,-480.0,0.00013698,2]
[384242865,1757306702047,-527.0796257,0.00013698,2]
[384242866,1757306702070,-484.33657807,0.00013698,2]
[384242867,1757306702092,-481.80806321,0.00013698,2]
[384242868,1757306702115,-481.56454156,0.00013698,2]
[384242869,1757306702137,-486.10810558,0.00013698,2]
[384242870,1757306702257,-480.76668818,0.00013698,2]
[384242871,1757306702279,-482.55263004,0.00013698,2]
[384242872,1757306702302,-481.32621471,0.00013698,2]
[384242873,1757306702324,-481.35352775,0.00013698,2]
[384242874,1757306702345,-482.84143116,0.00013698,2]
[384242875,1757306702370,-480.32739265,0.00013698,2]
[384242876,1757306702391,-377.01514448,0.00013698,2]
[384242877,1757306702414,-481.3479009,0.00013698,2]
[384242878,1757306702436,-482.65791669,0.00013698,2]
[384242879,1757306702458,-618.33674935,0.00013698,2]
[384242880,1757306702480,-483.61320767,0.00013698,2]
[384242881,1757306702502,-480.0,0.00013698,2]
[384242882,1757306702526,-480.0,0.00013698,2]
[384242883,1757306702549,-480.0,0.00013698,2]
[384242884,1757306702572,-481.7877909,0.00013698,2]
[384242885,1757306702596,-483.7184158,0.00013698,2]
[384242886,1757306702617,-465.73128426,0.00013698,2]
[384242887,1757306702639,-484.26923045,0.00013698,2]